[Event "Early-Titled-Tuesday-Blitz-September-12-2023"]
[Site "Chess.com"]
[Date "2023.09.12"]
[Round "11"]
[White "BeautiFullMindChess"]
[Black "CFalcons8"]
[Result "0-1"]
[WhiteElo "2196"]
[BlackElo "2304"]
[TimeControl "180+1"]
[EndTime "10:05:43 PDT"]
[Termination "CFalcons8 won by checkmate"]

1. e4 {[%clk 0:03:00.9]} 1... e5 {[%clk 0:02:59.8]} 2. Nf3 {[%clk 0:03:00.2]}
2... Nc6 {[%clk 0:03:00]} 3. Bc4 {[%clk 0:02:58]} 3... Nf6 {[%clk 0:03:00]} 4.
d3 {[%clk 0:02:58]} 4... Bc5 {[%clk 0:02:58.3]} 5. O-O {[%clk 0:02:54.2]} 5...
d6 {[%clk 0:02:56.2]} 6. a4 {[%clk 0:02:53.3]} 6... O-O {[%clk 0:02:54.2]} 7. c3
{[%clk 0:02:43.2]} 7... a6 {[%clk 0:02:54]} 8. h3 {[%clk 0:02:37]} 8... h6
{[%clk 0:02:50.8]} 9. b4 {[%clk 0:02:36.7]} 9... Ba7 {[%clk 0:02:47.9]} 10. Nbd2
{[%clk 0:02:33]} 10... Ne7 {[%clk 0:02:40.3]} 11. Re1 {[%clk 0:01:55.4]} 11...
b5 {[%clk 0:02:39.1]} 12. Bb3 {[%clk 0:01:46.7]} 12... Ng6 {[%clk 0:02:32.1]}
13. Nf1 {[%clk 0:01:42.2]} 13... c6 {[%clk 0:02:25.2]} 14. Be3 {[%clk
0:01:34.7]} 14... Bxe3 {[%clk 0:02:21.8]} 15. Nxe3 {[%clk 0:01:33.5]} 15... Bd7
{[%clk 0:02:19.4]} 16. axb5 {[%clk 0:01:21.4]} 16... axb5 {[%clk 0:02:20.3]} 17.
Qc2 {[%clk 0:01:15.4]} 17... Qb6 {[%clk 0:02:06.1]} 18. d4 {[%clk 0:01:10.9]}
18... Qb7 {[%clk 0:01:47.4]} 19. dxe5 {[%clk 0:01:02.3]} 19... dxe5 {[%clk
0:01:48.3]} 20. h4 {[%clk 0:00:57.1]} 20... Rxa1 {[%clk 0:01:46.3]} 21. Rxa1
{[%clk 0:00:56.3]} 21... Ra8 {[%clk 0:01:47.2]} 22. Rxa8+ {[%clk 0:00:54.9]}
22... Qxa8 {[%clk 0:01:48.1]} 23. g3 {[%clk 0:00:54.2]} 23... Qa1+ {[%clk
0:01:39]} 24. Kg2 {[%clk 0:00:53.7]} 24... Ng4 {[%clk 0:01:38.6]} 25. Nf5 {[%clk
0:00:33.2]} 25... Nf6 {[%clk 0:00:53]} 26. h5 {[%clk 0:00:29.3]} 26... Nxh5
{[%clk 0:00:52.1]} 27. Qd3 {[%clk 0:00:21.4]} 27... Nf6 {[%clk 0:00:43.5]} 28.
Nxe5 {[%clk 0:00:15.6]} 28... Nxe5 {[%clk 0:00:36.4]} 29. Qd6 {[%clk 0:00:14.6]}
29... Qxc3 {[%clk 0:00:32.9]} 30. Bxf7+ {[%clk 0:00:11.6]} 30... Nxf7 {[%clk
0:00:26.3]} 31. Qb8+ {[%clk 0:00:11.5]} 31... Kh7 {[%clk 0:00:26]} 32. Ne7
{[%clk 0:00:12.3]} 32... Qe5 {[%clk 0:00:20.8]} 33. Qf8 {[%clk 0:00:08.3]} 33...
Qxe4+ {[%clk 0:00:20.3]} 34. Kh2 {[%clk 0:00:08.1]} 34... Ng4+ {[%clk 0:00:20]}
35. Kg1 {[%clk 0:00:08]} 35... Qe1+ {[%clk 0:00:19.9]} 36. Kg2 {[%clk
0:00:08.6]} 36... Qxf2+ {[%clk 0:00:20.3]} 37. Kh3 {[%clk 0:00:09.3]} 37... Qh2#
{[%clk 0:00:20.7]} 0-1

[Event "Early-Titled-Tuesday-Blitz-September-12-2023"]
[Site "Chess.com"]
[Date "2023.09.12"]
[Round "11"]
[White "AliKa2810"]
[Black "seopie"]
[Result "0-1"]
[WhiteElo "2576"]
[BlackElo "2822"]
[TimeControl "180+1"]
[EndTime "10:05:45 PDT"]
[Termination "seopie won by resignation"]

1. d4 {[%clk 0:03:00.9]} 1... Nf6 {[%clk 0:02:59.8]} 2. c4 {[%clk 0:03:01.2]}
2... e6 {[%clk 0:03:00.3]} 3. Nc3 {[%clk 0:03:01.6]} 3... Bb4 {[%clk 0:03:00]}
4. a3 {[%clk 0:03:02]} 4... Bxc3+ {[%clk 0:03:00.1]} 5. bxc3 {[%clk 0:03:02.9]}
5... b6 {[%clk 0:02:59]} 6. f3 {[%clk 0:03:00.3]} 6... d6 {[%clk 0:02:56.1]} 7.
e4 {[%clk 0:03:00.5]} 7... c5 {[%clk 0:02:55.9]} 8. Bd3 {[%clk 0:03:01.2]} 8...
Qc7 {[%clk 0:02:55]} 9. Ne2 {[%clk 0:02:55.9]} 9... Ba6 {[%clk 0:02:52.3]} 10.
d5 {[%clk 0:02:49.4]} 10... O-O {[%clk 0:02:49.3]} 11. O-O {[%clk 0:02:47.6]}
11... Nbd7 {[%clk 0:02:49.2]} 12. f4 {[%clk 0:02:44.8]} 12... exd5 {[%clk
0:02:38.6]} 13. cxd5 {[%clk 0:02:43.8]} 13... Bxd3 {[%clk 0:02:38.7]} 14. Qxd3
{[%clk 0:02:44.7]} 14... c4 {[%clk 0:02:37.7]} 15. Qf3 {[%clk 0:02:41]} 15...
Nc5 {[%clk 0:02:36.8]} 16. Ng3 {[%clk 0:02:40.1]} 16... Rfe8 {[%clk 0:02:35.7]}
17. e5 {[%clk 0:02:14.6]} 17... dxe5 {[%clk 0:02:34.9]} 18. Nf5 {[%clk
0:02:14.9]} 18... e4 {[%clk 0:02:23.5]} 19. Qg3 {[%clk 0:02:14.8]} 19... g6
{[%clk 0:02:23.2]} 20. Be3 {[%clk 0:02:09.4]} 20... Nxd5 {[%clk 0:02:16.6]} 21.
Bd4 {[%clk 0:02:09]} 21... f6 {[%clk 0:01:55.4]} 22. Rad1 {[%clk 0:01:55.2]}
22... Nd3 {[%clk 0:01:52.1]} 23. Nh6+ {[%clk 0:01:46.1]} 23... Kg7 {[%clk
0:01:50.9]} 24. Ng4 {[%clk 0:01:46.4]} 24... h5 {[%clk 0:01:45]} 25. Ne3 {[%clk
0:01:39.4]} 25... N5xf4 {[%clk 0:01:19.7]} 26. Kh1 {[%clk 0:01:30.6]} 26... g5
{[%clk 0:01:18]} 27. Qxg5+ {[%clk 0:01:30]} 27... Kf8 {[%clk 0:01:11.1]} 28.
Qxf6+ {[%clk 0:01:29.8]} 28... Qf7 {[%clk 0:01:11.3]} 29. Qh6+ {[%clk 0:01:23]}
29... Ke7 {[%clk 0:01:11.6]} 30. Rxd3 {[%clk 0:01:21.9]} 30... exd3 {[%clk
0:01:11.7]} 31. Rxf4 {[%clk 0:01:21.3]} 31... Qe6 {[%clk 0:01:12.1]} 32. Qg7+
{[%clk 0:01:07.4]} 32... Kd8 {[%clk 0:01:10.8]} 33. Bf6+ {[%clk 0:01:07.5]}
33... Kc8 {[%clk 0:01:08.5]} 34. Bd4 {[%clk 0:00:53]} 34... Rb8 {[%clk
0:00:52.1]} 35. Rf7 {[%clk 0:00:52.2]} 35... Qc6 {[%clk 0:00:38]} 36. Qg5 {[%clk
0:00:45.3]} 36... Rb7 {[%clk 0:00:35.7]} 37. Qf5+ {[%clk 0:00:42.9]} 37... Rd7
{[%clk 0:00:36]} 38. h3 {[%clk 0:00:41.6]} 38... Qe6 {[%clk 0:00:35.9]} 39. Qxe6
{[%clk 0:00:31.9]} 39... Rxe6 {[%clk 0:00:35.6]} 40. Rf1 {[%clk 0:00:16.3]}
40... Rxd4 {[%clk 0:00:34.1]} 41. cxd4 {[%clk 0:00:16]} 41... Rxe3 {[%clk
0:00:34.1]} 42. Kg1 {[%clk 0:00:16.6]} 42... d2 {[%clk 0:00:33.9]} 43. Kf2
{[%clk 0:00:16.2]} 43... Re8 {[%clk 0:00:30]} 44. Rd1 {[%clk 0:00:15.9]} 44...
c3 {[%clk 0:00:30.3]} 0-1

[Event "Early-Titled-Tuesday-Blitz-September-12-2023"]
[Site "Chess.com"]
[Date "2023.09.12"]
[Round "11"]
[White "turayev_shahruh17"]
[Black "Rud_Makarian"]
[Result "1/2-1/2"]
[WhiteElo "2825"]
[BlackElo "2953"]
[TimeControl "180+1"]
[EndTime "10:05:48 PDT"]
[Termination "Game drawn by agreement"]

1. e4 {[%clk 0:03:00]} 1... c5 {[%clk 0:02:56.5]} 2. Nc3 {[%clk 0:03:00.9]} 2...
Nc6 {[%clk 0:02:55.5]} 3. Bb5 {[%clk 0:03:00.8]} 3... e6 {[%clk 0:02:54.8]} 4.
Bxc6 {[%clk 0:02:59.8]} 4... bxc6 {[%clk 0:02:55.7]} 5. f4 {[%clk 0:03:00.2]}
5... d5 {[%clk 0:02:55.9]} 6. e5 {[%clk 0:02:58.6]} 6... c4 {[%clk 0:02:55]} 7.
Nf3 {[%clk 0:02:56.5]} 7... Nh6 {[%clk 0:02:55.5]} 8. O-O {[%clk 0:02:52.8]}
8... c5 {[%clk 0:02:46.9]} 9. Ne2 {[%clk 0:02:52.2]} 9... d4 {[%clk 0:02:45.3]}
10. d3 {[%clk 0:02:51.2]} 10... Bb7 {[%clk 0:02:44]} 11. Ng3 {[%clk 0:02:48.2]}
11... cxd3 {[%clk 0:02:39.5]} 12. cxd3 {[%clk 0:02:47.8]} 12... Be7 {[%clk
0:02:40]} 13. Ng5 {[%clk 0:02:30]} 13... O-O {[%clk 0:02:33.8]} 14. Qh5 {[%clk
0:02:21.9]} 14... Bxg5 {[%clk 0:02:34]} 15. fxg5 {[%clk 0:02:20.7]} 15... Nf5
{[%clk 0:02:34.5]} 16. Nxf5 {[%clk 0:02:05.2]} 16... exf5 {[%clk 0:02:35.4]} 17.
Qe2 {[%clk 0:02:06.1]} 17... Qd7 {[%clk 0:02:16.5]} 18. b3 {[%clk 0:02:01.2]}
18... a5 {[%clk 0:02:10.7]} 19. Ba3 {[%clk 0:02:00.1]} 19... Rfc8 {[%clk
0:02:08.9]} 20. Rac1 {[%clk 0:01:55.5]} 20... a4 {[%clk 0:02:05.7]} 21. Bxc5
{[%clk 0:01:28.5]} 21... axb3 {[%clk 0:02:05]} 22. axb3 {[%clk 0:01:29.4]} 22...
Qd5 {[%clk 0:02:02.2]} 23. b4 {[%clk 0:01:28.7]} 23... Ra2 {[%clk 0:02:00.2]}
24. Rc2 {[%clk 0:01:29.1]} 24... Rxc2 {[%clk 0:02:00.4]} 25. Qxc2 {[%clk
0:01:28.1]} 25... Qxe5 {[%clk 0:02:01.1]} 26. Qf2 {[%clk 0:01:25.4]} 26... Qd5
{[%clk 0:01:20.2]} 27. Qf3 {[%clk 0:01:23.9]} 27... Qxc5 {[%clk 0:00:36.2]} 28.
Qxb7 {[%clk 0:01:10.5]} 28... Qc3 {[%clk 0:00:36.6]} 29. Rxf5 {[%clk 0:01:08.4]}
29... Rf8 {[%clk 0:00:36.3]} 30. Qb5 {[%clk 0:01:03.8]} 30... g6 {[%clk
0:00:27.4]} 31. Rf1 {[%clk 0:01:02.2]} 31... Qd2 {[%clk 0:00:27.3]} 32. Qc4
{[%clk 0:01:00.8]} 32... Qe3+ {[%clk 0:00:22.6]} 33. Kh1 {[%clk 0:01:00.7]}
33... Qxg5 {[%clk 0:00:20.3]} 34. Qxd4 {[%clk 0:00:59.6]} 34... Rd8 {[%clk
0:00:19.8]} 35. Qc4 {[%clk 0:00:57.7]} 35... Rd7 {[%clk 0:00:18]} 36. b5 {[%clk
0:00:55.8]} 36... Qd8 {[%clk 0:00:10.7]} 37. h3 {[%clk 0:00:49.8]} 37... Qb8
{[%clk 0:00:07.6]} 1/2-1/2

[Event "Early-Titled-Tuesday-Blitz-September-12-2023"]
[Site "Chess.com"]
[Date "2023.09.12"]
[Round "11"]
[White "zverr1"]
[Black "DarZay"]
[Result "1-0"]
[WhiteElo "2472"]
[BlackElo "2272"]
[TimeControl "180+1"]
[EndTime "10:05:49 PDT"]
[Termination "zverr1 won by resignation"]

1. e4 {[%clk 0:03:00.9]} 1... c5 {[%clk 0:02:58.8]} 2. Nf3 {[%clk 0:03:00.4]}
2... Nc6 {[%clk 0:02:59]} 3. Bb5 {[%clk 0:02:59.4]} 3... g6 {[%clk 0:02:56.7]}
4. Bxc6 {[%clk 0:02:58.7]} 4... dxc6 {[%clk 0:02:56.5]} 5. d3 {[%clk 0:02:58.3]}
5... Bg7 {[%clk 0:02:56.7]} 6. h3 {[%clk 0:02:58.1]} 6... Nf6 {[%clk 0:02:53.7]}
7. Nc3 {[%clk 0:02:57.4]} 7... b6 {[%clk 0:02:52.5]} 8. Be3 {[%clk 0:02:55.6]}
8... h6 {[%clk 0:02:52.7]} 9. a4 {[%clk 0:02:52.3]} 9... a5 {[%clk 0:02:50.3]}
10. Qd2 {[%clk 0:02:45.8]} 10... Be6 {[%clk 0:02:48.7]} 11. b3 {[%clk
0:02:41.1]} 11... Nd7 {[%clk 0:02:47.4]} 12. Rd1 {[%clk 0:02:38.8]} 12... Qc7
{[%clk 0:02:46.4]} 13. d4 {[%clk 0:02:35]} 13... cxd4 {[%clk 0:02:46.1]} 14.
Bxd4 {[%clk 0:02:33.7]} 14... O-O {[%clk 0:02:34.3]} 15. O-O {[%clk 0:02:25.6]}
15... f5 {[%clk 0:02:19.1]} 16. Bxg7 {[%clk 0:02:20.1]} 16... Kxg7 {[%clk
0:02:19]} 17. Nd4 {[%clk 0:02:20.7]} 17... Nc5 {[%clk 0:02:09.6]} 18. exf5
{[%clk 0:02:19.5]} 18... Bxf5 {[%clk 0:02:04.4]} 19. Rfe1 {[%clk 0:02:20.1]}
19... e5 {[%clk 0:02:03.8]} 20. Nxf5+ {[%clk 0:02:18]} 20... Rxf5 {[%clk
0:02:03]} 21. Qd6 {[%clk 0:02:12.6]} 21... Qxd6 {[%clk 0:01:50.2]} 22. Rxd6
{[%clk 0:02:13.5]} 22... Rf6 {[%clk 0:01:50.5]} 23. Red1 {[%clk 0:02:06.7]}
23... Rc8 {[%clk 0:01:40.1]} 24. f3 {[%clk 0:02:04.7]} 24... Kf7 {[%clk
0:01:39]} 25. Rxf6+ {[%clk 0:02:02.8]} 25... Kxf6 {[%clk 0:01:39.3]} 26. Rd6+
{[%clk 0:02:03.6]} 26... Kf7 {[%clk 0:01:36.8]} 27. Ne4 {[%clk 0:01:55.4]} 27...
Nxe4 {[%clk 0:01:31.3]} 28. fxe4 {[%clk 0:01:56.3]} 28... h5 {[%clk 0:01:30.6]}
29. Kf2 {[%clk 0:01:53.2]} 29... g5 {[%clk 0:01:30.2]} 30. Rh6 {[%clk
0:01:44.4]} 30... Kg7 {[%clk 0:01:25.9]} 31. Re6 {[%clk 0:01:42.1]} 31... Rd8
{[%clk 0:01:21.2]} 32. Ke3 {[%clk 0:01:36.6]} 32... Rd1 {[%clk 0:01:12.3]} 33.
Rxc6 {[%clk 0:01:29]} 33... Rg1 {[%clk 0:01:11]} 34. Kf2 {[%clk 0:01:28.1]}
34... Rc1 {[%clk 0:01:09]} 35. Ke3 {[%clk 0:01:24.2]} 35... Rg1 {[%clk
0:01:08.6]} 36. Kf2 {[%clk 0:01:15]} 36... Rc1 {[%clk 0:01:08.3]} 37. g4 {[%clk
0:01:11.7]} 37... h4 {[%clk 0:01:03.1]} 38. c4 {[%clk 0:01:08]} 38... Rc2+
{[%clk 0:00:58.4]} 39. Kg1 {[%clk 0:01:06.5]} 39... Rc1+ {[%clk 0:00:58.4]} 40.
Kf2 {[%clk 0:01:06.3]} 40... Rc2+ {[%clk 0:00:58.8]} 41. Ke1 {[%clk 0:01:06.8]}
41... Rc1+ {[%clk 0:00:51.9]} 42. Kd2 {[%clk 0:00:59.8]} 42... Rh1 {[%clk
0:00:51.6]} 43. Rxb6 {[%clk 0:00:56.9]} 43... Rxh3 {[%clk 0:00:51.8]} 44. c5
{[%clk 0:00:56.5]} 44... Rh2+ {[%clk 0:00:51.8]} 45. Kd3 {[%clk 0:00:53.9]}
45... h3 {[%clk 0:00:49.6]} 46. c6 {[%clk 0:00:51]} 46... Rh1 {[%clk 0:00:39.3]}
47. Rb7+ {[%clk 0:00:47.5]} 47... Kg6 {[%clk 0:00:37.1]} 48. Rb8 {[%clk
0:00:45.2]} 48... Kg7 {[%clk 0:00:37.4]} 49. c7 {[%clk 0:00:43]} 49... Rc1
{[%clk 0:00:26.1]} 50. c8=Q {[%clk 0:00:42.3]} 50... Rxc8 {[%clk 0:00:26]} 51.
Rxc8 {[%clk 0:00:43.2]} 51... h2 {[%clk 0:00:26.2]} 52. Rc1 {[%clk 0:00:44]} 1-0

[Event "Early-Titled-Tuesday-Blitz-September-12-2023"]
[Site "Chess.com"]
[Date "2023.09.12"]
[Round "11"]
[White "kingofthenil"]
[Black "jcibarra"]
[Result "1-0"]
[WhiteElo "2785"]
[BlackElo "2920"]
[TimeControl "180+1"]
[EndTime "10:05:52 PDT"]
[Termination "kingofthenil won on time"]

1. e4 {[%clk 0:03:00]} 1... Nc6 {[%clk 0:02:55.6]} 2. Nf3 {[%clk 0:02:58.9]}
2... d6 {[%clk 0:02:56]} 3. d4 {[%clk 0:02:58.7]} 3... Nf6 {[%clk 0:02:56.5]} 4.
Nc3 {[%clk 0:02:56.1]} 4... g6 {[%clk 0:02:56.4]} 5. d5 {[%clk 0:02:50.5]} 5...
Nb8 {[%clk 0:02:56.5]} 6. Be3 {[%clk 0:02:32.7]} 6... Bg7 {[%clk 0:02:56.3]} 7.
Qd2 {[%clk 0:02:33]} 7... c6 {[%clk 0:02:56.6]} 8. h3 {[%clk 0:02:22.9]} 8...
Nbd7 {[%clk 0:02:51.3]} 9. Bh6 {[%clk 0:02:18.2]} 9... Bxh6 {[%clk 0:02:48.3]}
10. Qxh6 {[%clk 0:02:19.1]} 10... Qb6 {[%clk 0:02:45.1]} 11. O-O-O {[%clk
0:02:18.9]} 11... Qxf2 {[%clk 0:02:39.1]} 12. dxc6 {[%clk 0:02:05.4]} 12... bxc6
{[%clk 0:02:39.3]} 13. Bc4 {[%clk 0:02:06.3]} 13... Qxg2 {[%clk 0:02:04.8]} 14.
Rhf1 {[%clk 0:01:41.6]} 14... Rf8 {[%clk 0:01:59]} 15. e5 {[%clk 0:00:53.2]}
15... dxe5 {[%clk 0:01:06.7]} 16. Ng5 {[%clk 0:00:52.5]} 16... Rb8 {[%clk
0:00:49]} 17. h4 {[%clk 0:00:44]} 17... Rb4 {[%clk 0:00:39.7]} 18. Bb3 {[%clk
0:00:18.9]} 18... Ba6 {[%clk 0:00:38.8]} 19. Rxf6 {[%clk 0:00:07]} 19... exf6
{[%clk 0:00:30.1]} 20. Nxh7 {[%clk 0:00:06.8]} 20... Qg4 {[%clk 0:00:13.1]} 21.
Rxd7 {[%clk 0:00:04.7]} 21... Kxd7 {[%clk 0:00:12.6]} 22. Nxf6+ {[%clk
0:00:04.7]} 22... Ke7 {[%clk 0:00:08.8]} 23. Nxg4 {[%clk 0:00:03.6]} 23... Rxg4
{[%clk 0:00:09.7]} 24. Nd1 {[%clk 0:00:02.6]} 24... Rg1 {[%clk 0:00:08.4]} 25.
Qg7 {[%clk 0:00:02.9]} 25... Rd8 {[%clk 0:00:07.7]} 26. Qxf7+ {[%clk 0:00:02.5]}
26... Kd6 {[%clk 0:00:07.8]} 27. Qf6+ {[%clk 0:00:02.9]} 27... Kc7 {[%clk
0:00:07.8]} 28. c3 {[%clk 0:00:03.2]} 28... Kc8 {[%clk 0:00:05.4]} 29. Qxc6+
{[%clk 0:00:02.8]} 29... Kb8 {[%clk 0:00:05.3]} 30. Qxa6 {[%clk 0:00:03.7]}
30... Rd6 {[%clk 0:00:01.6]} 31. Qxd6+ {[%clk 0:00:03.7]} 1-0

[Event "Early-Titled-Tuesday-Blitz-September-12-2023"]
[Site "Chess.com"]
[Date "2023.09.12"]
[Round "11"]
[White "MarijaKuznecova"]
[Black "Hilary46"]
[Result "0-1"]
[WhiteElo "2414"]
[BlackElo "2562"]
[TimeControl "180+1"]
[EndTime "10:05:52 PDT"]
[Termination "Hilary46 won by checkmate"]

1. e4 {[%clk 0:03:00.9]} 1... e5 {[%clk 0:02:58.8]} 2. Nf3 {[%clk 0:03:00.1]}
2... Nc6 {[%clk 0:02:58.4]} 3. d4 {[%clk 0:02:58.7]} 3... exd4 {[%clk
0:02:54.9]} 4. Nxd4 {[%clk 0:02:59.6]} 4... Nf6 {[%clk 0:02:55.2]} 5. Nxc6
{[%clk 0:02:59.2]} 5... bxc6 {[%clk 0:02:56.1]} 6. e5 {[%clk 0:02:59.8]} 6...
Qe7 {[%clk 0:02:56.4]} 7. Qe2 {[%clk 0:03:00.4]} 7... Nd5 {[%clk 0:02:56.9]} 8.
c4 {[%clk 0:03:01.1]} 8... Ba6 {[%clk 0:02:57.3]} 9. Nd2 {[%clk 0:03:01.7]} 9...
Rb8 {[%clk 0:02:54.2]} 10. b3 {[%clk 0:02:50.1]} 10... g6 {[%clk 0:02:46.8]} 11.
Bb2 {[%clk 0:02:40.3]} 11... Bg7 {[%clk 0:02:32.6]} 12. Ne4 {[%clk 0:02:36.6]}
12... O-O {[%clk 0:02:22.5]} 13. Nf6+ {[%clk 0:01:21.6]} 13... Nxf6 {[%clk
0:02:19.7]} 14. exf6 {[%clk 0:01:22.5]} 14... Bxf6 {[%clk 0:02:17.8]} 15. Qxe7
{[%clk 0:01:22]} 15... Bxe7 {[%clk 0:02:18.7]} 16. O-O-O {[%clk 0:01:22.2]}
16... d6 {[%clk 0:02:14.9]} 17. h4 {[%clk 0:01:19.5]} 17... c5 {[%clk
0:02:08.7]} 18. f3 {[%clk 0:01:09.5]} 18... Bb7 {[%clk 0:02:00.5]} 19. Bd3
{[%clk 0:01:08.9]} 19... Rbe8 {[%clk 0:01:57.3]} 20. g4 {[%clk 0:01:03.8]} 20...
Bxf3 {[%clk 0:01:50.5]} 21. Rdf1 {[%clk 0:01:02.5]} 21... Bxh1 {[%clk
0:01:45.6]} 22. Rxh1 {[%clk 0:01:03.4]} 22... Bd8 {[%clk 0:01:36.1]} 23. Kc2
{[%clk 0:01:01.2]} 23... Re6 {[%clk 0:01:35.1]} 24. h5 {[%clk 0:01:01]} 24...
Bf6 {[%clk 0:01:35.1]} 25. Bc1 {[%clk 0:00:42]} 25... Rfe8 {[%clk 0:01:34]} 26.
g5 {[%clk 0:00:39.8]} 26... Bd4 {[%clk 0:01:32.3]} 27. Bf4 {[%clk 0:00:37.4]}
27... Be3 {[%clk 0:01:31.9]} 28. Rf1 {[%clk 0:00:32.5]} 28... Bxf4 {[%clk
0:01:30.7]} 29. Rxf4 {[%clk 0:00:32.9]} 29... Re5 {[%clk 0:01:31.2]} 30. hxg6
{[%clk 0:00:31.7]} 30... hxg6 {[%clk 0:01:30.7]} 31. Rg4 {[%clk 0:00:31.8]}
31... Re1 {[%clk 0:01:29.8]} 32. a3 {[%clk 0:00:30.9]} 32... a5 {[%clk
0:01:28.8]} 33. Rf4 {[%clk 0:00:29.9]} 33... R8e5 {[%clk 0:01:27.8]} 34. Rg4
{[%clk 0:00:29.8]} 34... Rh1 {[%clk 0:01:24.8]} 35. Rg2 {[%clk 0:00:22.4]} 35...
Rh5 {[%clk 0:01:23.3]} 36. b4 {[%clk 0:00:20.2]} 36... axb4 {[%clk 0:01:22.5]}
37. axb4 {[%clk 0:00:21.1]} 37... cxb4 {[%clk 0:01:22.7]} 38. Kb3 {[%clk
0:00:22]} 38... Rhxg5 {[%clk 0:01:20.4]} 39. Rf2 {[%clk 0:00:22.2]} 39... c5
{[%clk 0:01:20]} 40. Rb2 {[%clk 0:00:20.8]} 40... d5 {[%clk 0:01:17.9]} 41. cxd5
{[%clk 0:00:20]} 41... Rxd5 {[%clk 0:01:18.8]} 42. Bc4 {[%clk 0:00:20.6]} 42...
Rd4 {[%clk 0:01:18.6]} 43. Rf2 {[%clk 0:00:18.4]} 43... Rxc4 {[%clk 0:01:18.5]}
44. Kxc4 {[%clk 0:00:18.2]} 44... Re5 {[%clk 0:01:19.1]} 45. Rd2 {[%clk
0:00:17.8]} 45... Kg7 {[%clk 0:01:19.3]} 46. Rd8 {[%clk 0:00:18.4]} 46... g5
{[%clk 0:01:19.3]} 47. Rd7 {[%clk 0:00:19.3]} 47... g4 {[%clk 0:01:18.5]} 48.
Rc7 {[%clk 0:00:20.2]} 48... g3 {[%clk 0:01:17.9]} 49. Rd7 {[%clk 0:00:21.1]}
49... g2 {[%clk 0:01:17.9]} 50. Rd1 {[%clk 0:00:22]} 50... Rg5 {[%clk
0:01:18.1]} 51. Rg1 {[%clk 0:00:22.2]} 51... Kg6 {[%clk 0:01:18.5]} 52. Kd3
{[%clk 0:00:22.1]} 52... Kh5 {[%clk 0:01:18.5]} 53. Ke3 {[%clk 0:00:23]} 53...
b3 {[%clk 0:01:18.3]} 54. Kf3 {[%clk 0:00:23.9]} 54... c4 {[%clk 0:01:18.5]} 55.
Kf4 {[%clk 0:00:24.1]} 55... Kg6 {[%clk 0:01:16.9]} 56. Kf3 {[%clk 0:00:25]}
56... b2 {[%clk 0:01:16.6]} 57. Kf2 {[%clk 0:00:20.6]} 57... c3 {[%clk
0:01:16.4]} 58. Kf3 {[%clk 0:00:14.8]} 58... c2 {[%clk 0:01:15]} 59. Kf2 {[%clk
0:00:11.2]} 59... c1=Q {[%clk 0:01:13]} 60. Rxg2 {[%clk 0:00:11.8]} 60... Rxg2+
{[%clk 0:01:12.2]} 61. Kf3 {[%clk 0:00:12.5]} 61... Qf1+ {[%clk 0:01:11.7]} 62.
Ke4 {[%clk 0:00:12.2]} 62... b1=Q+ {[%clk 0:01:11.5]} 63. Kd4 {[%clk 0:00:13.1]}
63... Qfd3+ {[%clk 0:01:10.9]} 64. Kc5 {[%clk 0:00:14]} 64... Qbb5# {[%clk
0:01:10.7]} 0-1

[Event "Early-Titled-Tuesday-Blitz-September-12-2023"]
[Site "Chess.com"]
[Date "2023.09.12"]
[Round "11"]
[White "santosalberto1987"]
[Black "Vision_64"]
[Result "0-1"]
[WhiteElo "2527"]
[BlackElo "2388"]
[TimeControl "180+1"]
[EndTime "10:05:55 PDT"]
[Termination "Vision_64 won on time"]

1. e4 {[%clk 0:03:00.9]} 1... e6 {[%clk 0:02:58.7]} 2. d4 {[%clk 0:03:00.4]}
2... d5 {[%clk 0:02:58.4]} 3. Nc3 {[%clk 0:02:59.4]} 3... Nf6 {[%clk 0:02:57.8]}
4. e5 {[%clk 0:02:59]} 4... Ng8 {[%clk 0:02:58]} 5. Nce2 {[%clk 0:02:55.5]} 5...
c5 {[%clk 0:02:50.6]} 6. c3 {[%clk 0:02:55.7]} 6... Nc6 {[%clk 0:02:47.9]} 7.
Nf3 {[%clk 0:02:51.1]} 7... Nge7 {[%clk 0:02:43.9]} 8. a3 {[%clk 0:02:49]} 8...
cxd4 {[%clk 0:02:43.1]} 9. cxd4 {[%clk 0:02:48.9]} 9... Nf5 {[%clk 0:02:42.1]}
10. Nf4 {[%clk 0:02:42.9]} 10... Qb6 {[%clk 0:02:40.4]} 11. Be3 {[%clk
0:02:06.3]} 11... Qxb2 {[%clk 0:02:22.4]} 12. Bd3 {[%clk 0:02:06.1]} 12... Nxe3
{[%clk 0:02:06.3]} 13. fxe3 {[%clk 0:02:05.9]} 13... Qc3+ {[%clk 0:02:04.8]} 14.
Kf2 {[%clk 0:01:58.5]} 14... Be7 {[%clk 0:01:58.7]} 15. h4 {[%clk 0:01:57.1]}
15... f6 {[%clk 0:01:49.8]} 16. exf6 {[%clk 0:01:39.6]} 16... Bxf6 {[%clk
0:01:48.4]} 17. Ng5 {[%clk 0:01:40.1]} 17... Nxd4 {[%clk 0:00:52.1]} 18. Qh5+
{[%clk 0:01:12.8]} 18... Ke7 {[%clk 0:00:31.2]} 19. Qf7+ {[%clk 0:01:04.2]}
19... Kd6 {[%clk 0:00:30.6]} 20. Rhc1 {[%clk 0:00:46]} 20... Qd2+ {[%clk
0:00:18.4]} 21. Ne2 {[%clk 0:00:23.6]} 21... Nc6 {[%clk 0:00:17.9]} 22. Bf5
{[%clk 0:00:16]} 22... Bxg5 {[%clk 0:00:15]} 23. hxg5 {[%clk 0:00:13.4]} 23...
Bd7 {[%clk 0:00:15.4]} 24. Rd1 {[%clk 0:00:06.2]} 24... Qa5 {[%clk 0:00:11.6]}
25. Qxg7 {[%clk 0:00:02]} 25... Rhf8 {[%clk 0:00:11.8]} 26. Nf4 {[%clk
0:00:01.9]} 26... Rxf5 {[%clk 0:00:11.6]} 27. Kg1 {[%clk 0:00:02.1]} 27... Rxf4
{[%clk 0:00:11.1]} 28. exf4 {[%clk 0:00:02.2]} 28... Qc5+ {[%clk 0:00:11.3]} 29.
Kh1 {[%clk 0:00:02]} 29... Qf2 {[%clk 0:00:10.3]} 30. Rd3 {[%clk 0:00:01]} 30...
Qh4+ {[%clk 0:00:08.5]} 0-1